[Event "Live Chess"]
[Site "Chess.com"]
[Date "2021.03.17"]
[Round "4"]
[White "heyitsroman"]
[Black "ppra06"]
[Result "1-0"]
[CurrentPosition "8/PN2k3/1K6/8/2B5/8/1P6/8 b - -"]
[Timezone "UTC"]
[ECO "D30"]
[ECOUrl "https://www.chess.com/openings/Queens-Gambit-Declined"]
[UTCDate "2021.03.17"]
[UTCTime "03:02:06"]
[WhiteElo "1716"]
[BlackElo "1445"]
[TimeControl "2100+2"]
[Termination "heyitsroman won on time"]
[StartTime "03:02:06"]
[EndDate "2021.03.17"]
[EndTime "04:16:20"]
[Link "https://www.chess.com/game/live/9689107241"]

1. d4 {[%clk 0:34:16.4]} 1... e6 {[%clk 0:34:29.2]} 2. c4 {[%clk 0:34:16.2]} 2... d5 {[%clk 0:33:58.3]} 3. cxd5 {[%clk 0:33:59.7]} 3... exd5 {[%clk 0:33:56.9]} 4. Nc3 {[%clk 0:34:00.6]} 4... Nf6 {[%clk 0:33:55.9]} 5. Bg5 {[%clk 0:33:59.6]} 5... c6 {[%clk 0:33:45.3]} 6. e3 {[%clk 0:33:59.7]} 6... h6 {[%clk 0:33:37.5]} 7. Bh4 {[%clk 0:33:58.2]} 7... Bf5 {[%clk 0:32:36]} 8. Qf3 {[%clk 0:33:51.9]} 8... Bg6 {[%clk 0:31:53.1]} 9. Bxf6 {[%clk 0:33:38.1]} 9... Qxf6 {[%clk 0:31:50]} 10. Qxf6 {[%clk 0:33:39]} 10... gxf6 {[%clk 0:31:50]} 11. Nh3 {[%clk 0:30:05]} 11... Bd6 {[%clk 0:30:23.7]} 12. g3 {[%clk 0:29:16.8]} 12... Nd7 {[%clk 0:28:45.3]} 13. Kd2 {[%clk 0:28:57.6]} 13... Nb6 {[%clk 0:27:31.6]} 14. Nf4 {[%clk 0:28:00.3]} 14... Bh7 {[%clk 0:23:34.2]} 15. Nh5 {[%clk 0:26:53.2]} 15... Ke7 {[%clk 0:23:14.4]} 16. Bh3 {[%clk 0:26:47.4]} 16... Nc4+ {[%clk 0:22:36.4]} 17. Kc1 {[%clk 0:26:46.7]} 17... b5 {[%clk 0:18:05.2]} 18. Ng7 {[%clk 0:24:41.2]} 18... Rhg8 {[%clk 0:17:36.7]} 19. Nf5+ {[%clk 0:24:39.4]} 19... Bxf5 {[%clk 0:17:36.4]} 20. Bxf5 {[%clk 0:24:39]} 20... Rg5 {[%clk 0:17:02]} 21. g4 {[%clk 0:24:36.4]} 21... Bc7 {[%clk 0:15:41.7]} 22. h3 {[%clk 0:16:23.5]} 22... Nd6 {[%clk 0:15:00.9]} 23. Bd3 {[%clk 0:15:38.1]} 23... f5 {[%clk 0:14:24.8]} 24. f4 {[%clk 0:15:31.6]} 24... Rg7 {[%clk 0:14:00]} 25. Kc2 {[%clk 0:14:01.6]} 25... fxg4 {[%clk 0:13:40.8]} 26. hxg4 {[%clk 0:14:01.9]} 26... Rxg4 {[%clk 0:13:27.1]} 27. Rxh6 {[%clk 0:13:57]} 27... Rg2+ {[%clk 0:13:00.2]} 28. Ne2 {[%clk 0:12:33.1]} 28... Nc4 {[%clk 0:12:23.2]} 29. Rxc6 {[%clk 0:07:39.2]} 29... Kd7 {[%clk 0:11:13.2]} 30. Rc5 {[%clk 0:06:56.9]} 30... Nxe3+ {[%clk 0:09:24.9]} 31. Kb3 {[%clk 0:05:00.3]} 31... a6 {[%clk 0:08:10.8]} 32. Rac1 {[%clk 0:04:13.1]} 32... Bd6 {[%clk 0:06:17]} 33. R5c3 {[%clk 0:03:54.8]} 33... Nc4 {[%clk 0:05:56]} 34. a3 {[%clk 0:03:35.4]} 34... Bxf4 {[%clk 0:03:41.8]} 35. Rf1 {[%clk 0:03:01.6]} 35... Nd2+ {[%clk 0:03:39]} 36. Ka2 {[%clk 0:02:40.8]} 36... Nxf1 {[%clk 0:03:33.6]} 37. Nxf4 {[%clk 0:02:41.6]} 37... Rf2 {[%clk 0:02:18.1]} 38. Nxd5 {[%clk 0:02:40.6]} 38... Kd6 {[%clk 0:02:15.3]} 39. Rc5 {[%clk 0:01:03.4]} 39... Rf3 {[%clk 0:01:12.7]} 40. Be4 {[%clk 0:01:00.3]} 40... Rg3 {[%clk 0:00:52.1]} 41. Ne3 {[%clk 0:00:55.6]} 41... Re8 {[%clk 0:00:35.1]} 42. Nxf1 {[%clk 0:00:55.1]} 42... Rg1 {[%clk 0:00:24.3]} 43. Nd2 {[%clk 0:00:55]} 43... Rd1 {[%clk 0:00:24]} 44. Bc6 {[%clk 0:00:33]} 44... Rc8 {[%clk 0:00:21.2]} 45. Ne4+ {[%clk 0:00:33.6]} 45... Kc7 {[%clk 0:00:19]} 46. Bxb5+ {[%clk 0:00:29.2]} 46... Kb8 {[%clk 0:00:19.2]} 47. Rxc8+ {[%clk 0:00:23.8]} 47... Kxc8 {[%clk 0:00:20.2]} 48. Bxa6+ {[%clk 0:00:24.9]} 48... Kd7 {[%clk 0:00:20.3]} 49. Bb5+ {[%clk 0:00:24.1]} 49... Ke6 {[%clk 0:00:20.8]} 50. Bc4+ {[%clk 0:00:23.2]} 50... Kf5 {[%clk 0:00:21.5]} 51. Nd6+ {[%clk 0:00:23.9]} 51... Kg6 {[%clk 0:00:21.6]} 52. Nxf7 {[%clk 0:00:24.1]} 52... Kf5 {[%clk 0:00:21.9]} 53. d5 {[%clk 0:00:24.1]} 53... Kf6 {[%clk 0:00:20.9]} 54. d6 {[%clk 0:00:25.2]} 54... Rxd6 {[%clk 0:00:04.1]} 55. Nxd6 {[%clk 0:00:25.5]} 55... Ke5 {[%clk 0:00:04.5]} 56. Nb7 {[%clk 0:00:24.4]} 56... Kd4 {[%clk 0:00:05.3]} 57. Kb3 {[%clk 0:00:24.8]} 57... Ke5 {[%clk 0:00:05.6]} 58. Kb4 {[%clk 0:00:25.8]} 58... Kf5 {[%clk 0:00:03.5]} 59. Kb5 {[%clk 0:00:26.6]} 59... Kg6 {[%clk 0:00:04.4]} 60. a4 {[%clk 0:00:27.9]} 60... Kg7 {[%clk 0:00:04]} 61. a5 {[%clk 0:00:29.8]} 61... Kf8 {[%clk 0:00:05.1]} 62. a6 {[%clk 0:00:30.7]} 62... Ke8 {[%clk 0:00:06.6]} 63. Kb6 {[%clk 0:00:30.7]} 63... Ke7 {[%clk 0:00:06.2]} 64. a7 {[%clk 0:00:31.8]} 1-0

[Event "Live Chess"]
[Site "Chess.com"]
[Date "2021.03.17"]
[Round "4"]
[White "kapilank"]
[Black "swimgrass"]
[Result "1-0"]
[CurrentPosition "r2qr2k/p1p1bN2/1p2pn2/6Q1/3P4/2PB1b2/PP3PPP/R5K1 b - -"]
[Timezone "UTC"]
[ECO "C10"]
[ECOUrl "https://www.chess.com/openings/French-Defense-Rubinstein-Variation-4.Nxe4"]
[UTCDate "2021.03.17"]
[UTCTime "03:01:29"]
[WhiteElo "1907"]
[BlackElo "1363"]
[TimeControl "2100+2"]
[Termination "kapilank won by checkmate"]
[StartTime "03:01:29"]
[EndDate "2021.03.17"]
[EndTime "03:24:53"]
[Link "https://www.chess.com/game/live/9689097939"]

1. e4 {[%clk 0:35:00.8]} 1... e6 {[%clk 0:35:00.6]} 2. d4 {[%clk 0:34:58.8]} 2... d5 {[%clk 0:34:45]} 3. Nd2 {[%clk 0:34:16.1]} 3... dxe4 {[%clk 0:33:52.2]} 4. Nxe4 {[%clk 0:34:13.9]} 4... Be7 {[%clk 0:33:54.1]} 5. Nf3 {[%clk 0:34:00.1]} 5... Nf6 {[%clk 0:33:11.6]} 6. Nxf6+ {[%clk 0:31:43.8]} 6... Bxf6 {[%clk 0:33:09.5]} 7. c3 {[%clk 0:31:33.2]} 7... Nd7 {[%clk 0:32:20.3]} 8. Bd3 {[%clk 0:31:19.7]} 8... Be7 {[%clk 0:32:14.3]} 9. O-O {[%clk 0:31:15.6]} 9... Nf6 {[%clk 0:31:46.6]} 10. Bf4 {[%clk 0:30:44.3]} 10... O-O {[%clk 0:31:42.8]} 11. Re1 {[%clk 0:30:31.8]} 11... b6 {[%clk 0:30:49.7]} 12. Ne5 {[%clk 0:29:55.5]} 12... Bb7 {[%clk 0:30:30.6]} 13. Qc2 {[%clk 0:27:33]} 13... h6 {[%clk 0:29:25.6]} 14. Qd2 {[%clk 0:26:15.8]} 14... Re8 {[%clk 0:28:27.1]} 15. Bxh6 {[%clk 0:25:29.5]} 15... gxh6 {[%clk 0:28:02.7]} 16. Re3 {[%clk 0:24:48.2]} 16... Nh5 {[%clk 0:27:08.5]} 17. Rf3 {[%clk 0:23:04.4]} 17... Bxf3 {[%clk 0:26:38.7]} 18. Qxh6 {[%clk 0:22:59.4]} 18... Nf6 {[%clk 0:26:19.6]} 19. Qg5+ {[%clk 0:22:53.7]} 19... Kh8 {[%clk 0:25:16.2]} 20. Nxf7# {[%clk 0:22:48.4]} 1-0

[Event "Live Chess"]
[Site "Chess.com"]
[Date "2021.03.17"]
[Round "4"]
[White "andrewaballantyne"]
[Black "dashrndrx"]
[Result "0-1"]
[CurrentPosition "1K6/q1r3p1/6k1/6P1/8/8/8/8 w - -"]
[Timezone "UTC"]
[ECO "C02"]
[ECOUrl "https://www.chess.com/openings/French-Defense-Advance-Paulsen-Attack-5...Qb6"]
[UTCDate "2021.03.17"]
[UTCTime "03:01:20"]
[WhiteElo "1206"]
[BlackElo "1815"]
[TimeControl "2100+2"]
[Termination "dashrndrx won by checkmate"]
[StartTime "03:01:20"]
[EndDate "2021.03.17"]
[EndTime "03:48:34"]
[Link "https://www.chess.com/game/live/9689098279"]

1. e4 {[%clk 0:34:54.7]} 1... e6 {[%clk 0:35:00.7]} 2. d4 {[%clk 0:34:54.4]} 2... d5 {[%clk 0:35:01.2]} 3. e5 {[%clk 0:34:54.9]} 3... c5 {[%clk 0:35:01.9]} 4. c3 {[%clk 0:34:54.8]} 4... Qb6 {[%clk 0:35:03.6]} 5. Nf3 {[%clk 0:34:53]} 5... Nc6 {[%clk 0:35:03.4]} 6. Bd3 {[%clk 0:34:52.8]} 6... Bd7 {[%clk 0:35:03.1]} 7. O-O {[%clk 0:34:52.4]} 7... cxd4 {[%clk 0:34:40.1]} 8. cxd4 {[%clk 0:34:51.6]} 8... Nxd4 {[%clk 0:34:40]} 9. Nxd4 {[%clk 0:34:51.3]} 9... Qxd4 {[%clk 0:34:38.2]} 10. Nc3 {[%clk 0:34:50.1]} 10... a6 {[%clk 0:34:16.2]} 11. Re1 {[%clk 0:34:24.4]} 11... Ne7 {[%clk 0:33:31.6]} 12. Bg5 {[%clk 0:32:52.2]} 12... Qb6 {[%clk 0:31:49.8]} 13. b3 {[%clk 0:30:34.9]} 13... Ng6 {[%clk 0:31:05.5]} 14. Na4 {[%clk 0:30:06.6]} 14... Bxa4 {[%clk 0:30:51]} 15. bxa4 {[%clk 0:30:01.6]} 15... Bc5 {[%clk 0:30:41.7]} 16. Qc2 {[%clk 0:29:01.3]} 16... O-O {[%clk 0:30:04.7]} 17. Rab1 {[%clk 0:28:45.4]} 17... Qa7 {[%clk 0:29:49.7]} 18. h4 {[%clk 0:24:42.2]} 18... Bd4 {[%clk 0:26:22.6]} 19. Bxg6 {[%clk 0:22:57.7]} 19... hxg6 {[%clk 0:25:39]} 20. Be3 {[%clk 0:22:43.5]} 20... Bxe3 {[%clk 0:25:37.4]} 21. Rxe3 {[%clk 0:22:42.4]} 21... Rac8 {[%clk 0:24:05.2]} 22. Qd3 {[%clk 0:21:47.7]} 22... Rc4 {[%clk 0:23:50.6]} 23. Rh3 {[%clk 0:21:24.4]} 23... Rxa4 {[%clk 0:23:08.4]} 24. a3 {[%clk 0:21:05.2]} 24... b5 {[%clk 0:22:54.2]} 25. h5 {[%clk 0:20:58.3]} 25... Qd4 {[%clk 0:21:22.1]} 26. Qxd4 {[%clk 0:20:31.3]} 26... Rxd4 {[%clk 0:21:21.3]} 27. Rbb3 {[%clk 0:20:28.2]} 27... gxh5 {[%clk 0:20:30.1]} 28. Rxh5 {[%clk 0:20:24.8]} 28... f6 {[%clk 0:19:56.3]} 29. exf6 {[%clk 0:20:15.4]} 29... Rxf6 {[%clk 0:19:50.7]} 30. Re3 {[%clk 0:19:57.8]} 30... Kf7 {[%clk 0:19:38.8]} 31. Rhe5 {[%clk 0:19:32.3]} 31... Rd2 {[%clk 0:19:12.6]} 32. f3 {[%clk 0:19:24.8]} 32... d4 {[%clk 0:18:26.2]} 33. Re1 {[%clk 0:18:51.1]} 33... Ra2 {[%clk 0:18:01]} 34. R5e4 {[%clk 0:18:34.6]} 34... d3 {[%clk 0:16:50.2]} 35. Rd4 {[%clk 0:18:14.7]} 35... Rxa3 {[%clk 0:16:35.9]} 36. Re3 {[%clk 0:18:05.6]} 36... Rf5 {[%clk 0:16:19.3]} 37. Rdxd3 {[%clk 0:17:58.8]} 37... Rxd3 {[%clk 0:16:16.8]} 38. Rxd3 {[%clk 0:17:58.9]} 38... a5 {[%clk 0:16:01.6]} 39. Rd7+ {[%clk 0:17:50.4]} 39... Kf6 {[%clk 0:16:01]} 40. Kf2 {[%clk 0:17:48.1]} 40... b4 {[%clk 0:15:08.5]} 41. Rb7 {[%clk 0:17:40.4]} 41... Rc5 {[%clk 0:14:22.7]} 42. g4 {[%clk 0:17:36]} 42... Rc3 {[%clk 0:14:16.1]} 43. Rb5 {[%clk 0:17:27.7]} 43... Ra3 {[%clk 0:14:08.6]} 44. f4 {[%clk 0:17:11.6]} 44... b3 {[%clk 0:13:37.8]} 45. f5 {[%clk 0:16:59.6]} 45... exf5 {[%clk 0:13:16.1]} 46. Rxf5+ {[%clk 0:16:37.6]} 46... Kg6 {[%clk 0:13:15.6]} 47. Rb5 {[%clk 0:16:37.4]} 47... Ra2+ {[%clk 0:13:15.3]} 48. Ke3 {[%clk 0:16:28]} 48... a4 {[%clk 0:12:55.3]} 49. Kd3 {[%clk 0:16:26.7]} 49... b2 {[%clk 0:12:44.3]} 50. Kc3 {[%clk 0:16:25.1]} 50... a3 {[%clk 0:12:42.6]} 51. Kc2 {[%clk 0:16:21.7]} 51... Ra1 {[%clk 0:12:35.4]} 52. Rb3 {[%clk 0:16:06.4]} 52... Rc1+ {[%clk 0:12:30.1]} 53. Kd2 {[%clk 0:16:02.1]} 53... b1=Q {[%clk 0:12:26.1]} 54. Rxb1 {[%clk 0:15:48]} 54... Rxb1 {[%clk 0:12:26.3]} 55. g5 {[%clk 0:15:46.4]} 55... a2 {[%clk 0:12:19.3]} 56. Kd3 {[%clk 0:15:43.1]} 56... a1=Q {[%clk 0:12:13.3]} 57. Kc2 {[%clk 0:15:42.6]} 57... Rc1+ {[%clk 0:11:47.3]} 58. Kb3 {[%clk 0:15:40.3]} 58... Rc3+ {[%clk 0:11:43.5]} 59. Kb4 {[%clk 0:15:38.9]} 59... Qa3+ {[%clk 0:11:44.2]} 60. Kb5 {[%clk 0:15:39.5]} 60... Rc5+ {[%clk 0:11:45.8]} 61. Kb6 {[%clk 0:15:39.9]} 61... Qa5+ {[%clk 0:11:47.1]} 62. Kb7 {[%clk 0:15:40.7]} 62... Rc7+ {[%clk 0:11:48.2]} 63. Kb8 {[%clk 0:15:40.2]} 63... Qa7# {[%clk 0:11:49.3]} 0-1

[Event "Live Chess"]
[Site "Chess.com"]
[Date "2021.03.17"]
[Round "4"]
[White "nycsheep"]
[Black "victor6688"]
[Result "1-0"]
[CurrentPosition "8/4K1R1/8/p5Qk/8/P7/8/8 b - -"]
[Timezone "UTC"]
[ECO "B01"]
[ECOUrl "https://www.chess.com/openings/Scandinavian-Defense-Modern-Variation"]
[UTCDate "2021.03.17"]
[UTCTime "03:01:31"]
[WhiteElo "1769"]
[BlackElo "1205"]
[TimeControl "2100+2"]
[Termination "nycsheep won by checkmate"]
[StartTime "03:01:31"]
[EndDate "2021.03.17"]
[EndTime "03:50:48"]
[Link "https://www.chess.com/game/live/9689098683"]

1. e4 {[%clk 0:34:56.5]} 1... d5 {[%clk 0:34:39.6]} 2. exd5 {[%clk 0:34:50.5]} 2... Nf6 {[%clk 0:34:24.6]} 3. Nf3 {[%clk 0:33:56.6]} 3... Nxd5 {[%clk 0:34:15.5]} 4. d4 {[%clk 0:32:42.8]} 4... Bg4 {[%clk 0:34:05.4]} 5. c4 {[%clk 0:30:46.7]} 5... Nf6 {[%clk 0:33:57.2]} 6. Be2 {[%clk 0:30:31.5]} 6... e6 {[%clk 0:32:59]} 7. h3 {[%clk 0:30:02.8]} 7... Bh5 {[%clk 0:31:19.8]} 8. Nc3 {[%clk 0:26:33.6]} 8... Bb4 {[%clk 0:30:17.7]} 9. O-O {[%clk 0:26:19.1]} 9... O-O {[%clk 0:27:48.9]} 10. a3 {[%clk 0:25:05.4]} 10... Bxc3 {[%clk 0:27:39.3]} 11. bxc3 {[%clk 0:25:06.2]} 11... Ne4 {[%clk 0:27:32.2]} 12. Qc2 {[%clk 0:24:32.5]} 12... Nf6 {[%clk 0:26:53.5]} 13. Bg5 {[%clk 0:24:14.4]} 13... Nbd7 {[%clk 0:26:27.9]} 14. Ne5 {[%clk 0:23:40.6]} 14... Bxe2 {[%clk 0:25:42.4]} 15. Qxe2 {[%clk 0:23:39.4]} 15... Qe8 {[%clk 0:25:14]} 16. Rfe1 {[%clk 0:22:30.1]} 16... h6 {[%clk 0:24:33.1]} 17. Bh4 {[%clk 0:22:05.6]} 17... Nxe5 {[%clk 0:23:48.5]} 18. Bxf6 {[%clk 0:21:58.7]} 18... Ng6 {[%clk 0:23:38.6]} 19. Be5 {[%clk 0:21:31.3]} 19... c6 {[%clk 0:22:54.7]} 20. Bd6 {[%clk 0:21:17.7]} 20... Ne7 {[%clk 0:22:45.3]} 21. d5 {[%clk 0:20:40.7]} 21... Nf5 {[%clk 0:21:56.8]} 22. Bxf8 {[%clk 0:20:36.1]} 22... Qxf8 {[%clk 0:21:22.1]} 23. dxe6 {[%clk 0:20:36.7]} 23... fxe6 {[%clk 0:20:16.6]} 24. Qxe6+ {[%clk 0:20:31.5]} 24... Qf7 {[%clk 0:20:09.7]} 25. Qxf7+ {[%clk 0:18:56.5]} 25... Kxf7 {[%clk 0:20:01.9]} 26. Rad1 {[%clk 0:18:57.5]} 26... Re8 {[%clk 0:19:08.4]} 27. Rxe8 {[%clk 0:18:50.3]} 27... Kxe8 {[%clk 0:19:07]} 28. g4 {[%clk 0:18:41.5]} 28... Ne7 {[%clk 0:18:49.8]} 29. f4 {[%clk 0:18:32.5]} 29... Ng6 {[%clk 0:18:07]} 30. f5 {[%clk 0:18:29.5]} 30... Nf4 {[%clk 0:17:35.8]} 31. Kh2 {[%clk 0:17:58.7]} 31... Kf7 {[%clk 0:17:30.1]} 32. Rd7+ {[%clk 0:17:51]} 32... Kf6 {[%clk 0:17:23.9]} 33. Rxb7 {[%clk 0:17:39.6]} 33... a5 {[%clk 0:17:10.6]} 34. Rb6 {[%clk 0:17:03.9]} 34... Kg5 {[%clk 0:16:54.5]} 35. Kg3 {[%clk 0:16:41.1]} 35... Ne2+ {[%clk 0:16:34.4]} 36. Kf3 {[%clk 0:16:31.5]} 36... Nxc3 {[%clk 0:16:28.2]} 37. Rxc6 {[%clk 0:16:28.3]} 37... h5 {[%clk 0:16:12.7]} 38. Rg6+ {[%clk 0:16:08.6]} 38... Kh4 {[%clk 0:16:08.2]} 39. Rxg7 {[%clk 0:15:32.3]} 39... hxg4+ {[%clk 0:15:59.4]} 40. hxg4 {[%clk 0:15:24.9]} 40... Na4 {[%clk 0:15:39.3]} 41. Kf4 {[%clk 0:13:54.7]} 41... Kh3 {[%clk 0:15:22.4]} 42. Rh7+ {[%clk 0:13:18.2]} 42... Kg2 {[%clk 0:15:20.5]} 43. f6 {[%clk 0:13:09.9]} 43... Nc5 {[%clk 0:14:54.9]} 44. f7 {[%clk 0:13:00.4]} 44... Ne6+ {[%clk 0:14:49.7]} 45. Ke5 {[%clk 0:12:38.8]} 45... Nf8 {[%clk 0:14:47]} 46. Rg7 {[%clk 0:12:10.8]} 46... Nd7+ {[%clk 0:14:42.8]} 47. Ke6 {[%clk 0:11:57.4]} 47... Nc5+ {[%clk 0:14:43.1]} 48. Ke7 {[%clk 0:11:47.6]} 48... Ne4 {[%clk 0:14:30.2]} 49. f8=Q {[%clk 0:11:40.8]} 49... Ng3 {[%clk 0:14:17.9]} 50. Qf4 {[%clk 0:11:21.6]} 50... Kh3 {[%clk 0:14:02.9]} 51. Qxg3+ {[%clk 0:11:18.9]} 51... Kxg3 {[%clk 0:14:03.7]} 52. c5 {[%clk 0:11:20.5]} 52... Kg2 {[%clk 0:14:03.9]} 53. c6 {[%clk 0:11:21.6]} 53... Kg3 {[%clk 0:14:02.5]} 54. c7 {[%clk 0:11:22.7]} 54... Kg2 {[%clk 0:14:03.4]} 55. c8=Q {[%clk 0:11:23.7]} 55... Kg3 {[%clk 0:14:03.4]} 56. Qc3+ {[%clk 0:11:24]} 56... Kh4 {[%clk 0:13:58.5]} 57. Rh7+ {[%clk 0:11:22.3]} 57... Kg5 {[%clk 0:13:59.2]} 58. Qe3+ {[%clk 0:11:19.3]} 58... Kxg4 {[%clk 0:13:58.8]} 59. Rg7+ {[%clk 0:11:20.1]} 59... Kh5 {[%clk 0:13:52.5]} 60. Qg5# {[%clk 0:11:18.3]} 1-0

[Event "Live Chess"]
[Site "Chess.com"]
[Date "2021.03.17"]
[Round "4"]
[White "john_hartmann"]
[Black "Aeqetes"]
[Result "1-0"]
[CurrentPosition "8/p7/1pp1k3/4P2p/3K1Pp1/P2B2P1/1P5P/8 b - -"]
[Timezone "UTC"]
[ECO "D08"]
[ECOUrl "https://www.chess.com/openings/Queens-Gambit-Declined-Albin-Countergambit-3.dxe5-d4-4.Nf3-Nc6-5.a3"]
[UTCDate "2021.03.17"]
[UTCTime "03:01:34"]
[WhiteElo "1765"]
[BlackElo "1175"]
[TimeControl "2100+2"]
[Termination "john_hartmann won by resignation"]
[StartTime "03:01:34"]
[EndDate "2021.03.17"]
[EndTime "03:18:03"]
[Link "https://www.chess.com/game/live/9689099039"]

1. d4 {[%clk 0:34:57.3]} 1... d5 {[%clk 0:34:50.4]} 2. c4 {[%clk 0:34:57.6]} 2... e5 {[%clk 0:34:50.3]} 3. dxe5 {[%clk 0:34:56.3]} 3... d4 {[%clk 0:34:50.2]} 4. Nf3 {[%clk 0:34:12.8]} 4... Nc6 {[%clk 0:34:46.8]} 5. a3 {[%clk 0:34:03.6]} 5... Nge7 {[%clk 0:34:27.8]} 6. Nbd2 {[%clk 0:33:38.5]} 6... Ng6 {[%clk 0:34:25.6]} 7. Nb3 {[%clk 0:33:11.1]} 7... Ngxe5 {[%clk 0:33:54.9]} 8. Nxe5 {[%clk 0:33:13]} 8... Nxe5 {[%clk 0:33:50.1]} 9. Qxd4 {[%clk 0:33:10.9]} 9... Qxd4 {[%clk 0:33:46.4]} 10. Nxd4 {[%clk 0:33:11.7]} 10... Nxc4 {[%clk 0:33:45.4]} 11. e4 {[%clk 0:32:55.9]} 11... Be6 {[%clk 0:33:38.5]} 12. Nxe6 {[%clk 0:32:37.7]} 12... fxe6 {[%clk 0:33:33.1]} 13. Bxc4 {[%clk 0:32:38]} 13... Ke7 {[%clk 0:33:20.5]} 14. Be3 {[%clk 0:31:43.6]} 14... b6 {[%clk 0:33:07.9]} 15. Ke2 {[%clk 0:31:39.2]} 15... g6 {[%clk 0:33:06.8]} 16. Rhd1 {[%clk 0:31:30.9]} 16... Bg7 {[%clk 0:33:06.1]} 17. Bd4 {[%clk 0:31:27.9]} 17... Bxd4 {[%clk 0:32:58.9]} 18. Rxd4 {[%clk 0:31:28.3]} 18... Rhd8 {[%clk 0:32:53]} 19. Rad1 {[%clk 0:31:28.1]} 19... Rxd4 {[%clk 0:32:48.9]} 20. Rxd4 {[%clk 0:31:29.4]} 20... Rd8 {[%clk 0:32:49]} 21. Rxd8 {[%clk 0:31:30.1]} 21... Kxd8 {[%clk 0:32:49.7]} 22. Bxe6 {[%clk 0:31:31.4]} 22... Ke7 {[%clk 0:32:50.1]} 23. Bc4 {[%clk 0:31:31.5]} 23... h6 {[%clk 0:32:50.7]} 24. Ke3 {[%clk 0:31:32.5]} 24... Kf6 {[%clk 0:32:52.2]} 25. Kf4 {[%clk 0:31:33.7]} 25... g5+ {[%clk 0:32:53]} 26. Ke3 {[%clk 0:31:33.4]} 26... Ke5 {[%clk 0:32:54.1]} 27. g3 {[%clk 0:31:33.3]} 27... g4 {[%clk 0:31:14.4]} 28. Be2 {[%clk 0:31:19.9]} 28... h5 {[%clk 0:31:13.3]} 29. f4+ {[%clk 0:31:20.6]} 29... Kf6 {[%clk 0:31:07.3]} 30. Kd4 {[%clk 0:31:20.2]} 30... c6 {[%clk 0:31:02.7]} 31. Bd3 {[%clk 0:31:15.3]} 31... Ke6 {[%clk 0:29:05.6]} 32. e5 {[%clk 0:31:09.8]} 1-0

[Event "Live Chess"]
[Site "Chess.com"]
[Date "2021.03.17"]
[Round "4"]
[White "GiorgosTsolias"]
[Black "dribbler23"]
[Result "1-0"]
[CurrentPosition "1r3rk1/p4pQp/3pp3/7q/3P4/8/PP3P1N/R1B3RK b - -"]
[Timezone "UTC"]
[ECO "B22"]
[ECOUrl "https://www.chess.com/openings/Sicilian-Defense-Alapin-Variation-2...d6"]
[UTCDate "2021.03.17"]
[UTCTime "03:01:43"]
[WhiteElo "1679"]
[BlackElo "1102"]
[TimeControl "2100+2"]
[Termination "GiorgosTsolias won by checkmate"]
[StartTime "03:01:43"]
[EndDate "2021.03.17"]
[EndTime "03:37:47"]
[Link "https://www.chess.com/game/live/9689099405"]

1. e4 {[%clk 0:34:50]} 1... c5 {[%clk 0:34:59.3]} 2. c3 {[%clk 0:34:49.5]} 2... d6 {[%clk 0:34:58.3]} 3. d4 {[%clk 0:34:43.9]} 3... cxd4 {[%clk 0:34:39.5]} 4. cxd4 {[%clk 0:34:42.6]} 4... Nf6 {[%clk 0:34:40.5]} 5. Nc3 {[%clk 0:34:31.5]} 5... g6 {[%clk 0:34:29.7]} 6. Bc4 {[%clk 0:34:07]} 6... Bg7 {[%clk 0:34:15.7]} 7. Qa4+ {[%clk 0:32:35.2]} 7... Bd7 {[%clk 0:33:58]} 8. Qb3 {[%clk 0:32:23.5]} 8... O-O {[%clk 0:33:39.2]} 9. Qxb7 {[%clk 0:31:31.1]} 9... Bc6 {[%clk 0:33:35.4]} 10. Qb3 {[%clk 0:31:26.1]} 10... Nxe4 {[%clk 0:33:25.9]} 11. Nxe4 {[%clk 0:31:13.7]} 11... Bxe4 {[%clk 0:33:25.6]} 12. Bd5 {[%clk 0:30:39.6]} 12... Bxd5 {[%clk 0:32:55.9]} 13. Qxd5 {[%clk 0:30:41.5]} 13... Nd7 {[%clk 0:32:54.3]} 14. Nf3 {[%clk 0:30:36.7]} 14... Nf6 {[%clk 0:32:42.8]} 15. Qb7 {[%clk 0:29:36.5]} 15... Qd7 {[%clk 0:31:03.2]} 16. Qb3 {[%clk 0:27:58.1]} 16... Nh5 {[%clk 0:30:07.7]} 17. O-O {[%clk 0:27:12.4]} 17... Qg4 {[%clk 0:29:00.6]} 18. h3 {[%clk 0:26:05.4]} 18... Qf5 {[%clk 0:28:29.2]} 19. g4 {[%clk 0:25:38.1]} 19... Qe6 {[%clk 0:27:50.7]} 20. gxh5 {[%clk 0:23:08.3]} 20... Qxh3 {[%clk 0:27:10]} 21. hxg6 {[%clk 0:20:19.8]} 21... Qg4+ {[%clk 0:25:55.5]} 22. Kh2 {[%clk 0:19:52.6]} 22... Qh5+ {[%clk 0:25:30.6]} 23. Kg1 {[%clk 0:17:05.5]} 23... Qxg6+ {[%clk 0:25:06.6]} 24. Kh1 {[%clk 0:17:03.7]} 24... Rab8 {[%clk 0:24:07.2]} 25. Qd5 {[%clk 0:16:05.7]} 25... Qg4 {[%clk 0:22:50.9]} 26. Rg1 {[%clk 0:15:21.5]} 26... Qh3+ {[%clk 0:22:44.5]} 27. Nh2 {[%clk 0:15:19.3]} 27... e6 {[%clk 0:22:10.1]} 28. Qg5 {[%clk 0:14:45.6]} 28... Qh5 {[%clk 0:21:22.4]} 29. Qxg7# {[%clk 0:14:42.2]} 1-0